bitfinex/quotes_SOLUSD_20220311
["timestamp","ask_amount","ask_price","bid_price","bid_amount"]
[1646961376387,9.13547957,82.121,82.04,18.2835]
[1646961376686,3.04447957,82.12,82.04,18.2835]
[1646961376890,6.091,82.119,82.02,14.54]
[1646961377090,6.091,82.119,82.014,27.42402982]
[1646961377292,1.64424255,82.114,82.014,27.42402982]
[1646961377491,1.64424255,82.112,81.992,22.7864]
[1646961377691,1.64424255,82.109,81.992,22.7864]
[1646961377893,6.093,82.108,81.992,22.7864]
[1646961378090,22.27724255,82.11,81.99,14.54]
[1646961378294,28.79640709,82.107,81.99,32.8352]
[1646961378491,6.093,82.106,81.99,32.8352]
[1646961378691,31.95741174,82.106,81.99,32.8352]
[1646961378892,54.66081883,82.105,81.99,32.8352]
[1646961379093,127.894,82.104,81.99,14.54]
[1646961379294,121.8,82.099,81.97,32.8397]
[1646961379492,123.44424255,82.097,81.97,32.8397]
[1646961379692,123.44424255,82.095,81.97,32.8397]
[1646961379893,14.54,82.09,81.97,32.8397]
[1646961380193,6.095,82.089,81.97,17.58447957]
[1646961380493,37.93588666,82.089,81.98,18.298]
[1646961380797,31.84088666,82.088,81.98,32.838]
[1646961380994,6.095,82.087,81.981,27.42402982]
[1646961381195,9.13947957,82.087,81.981,27.42402982]
[1646961381395,6.095,82.087,81.99,18.2955]
[1646961381597,3.04447957,82.086,81.981,30.46850939]
[1646961381795,6.095,82.085,81.981,30.46850939]
[1646961381996,6.095,82.085,81.982,27.42402982]
[1646961382198,3.04447957,82.084,81.982,27.42402982]
[1646961382396,31.84088666,82.084,81.99,18.2956]
[1646961382696,14.54,82.08,81.968,3.04447957]
[1646961382896,6.095,82.079,81.914,48.4419]
[1646961383098,121.8,82.078,81.941,27.42402982]
[1646961383298,121.8,82.076,81.95,14.54]
[1646961383496,18.3033,82.07,81.95,32.8428]
[1646961383796,71.9598744,82.069,81.95,41.96402982]
[1646961383997,23.417,82.068,81.95,41.96402982]
[1646961384196,6.096,82.067,81.95,41.96402982]
[1646961384396,34.89240709,82.067,81.95,41.96402982]
[1646961384595,60.49978666,82.067,81.95,14.54]
[1646961384796,54.66081883,82.066,81.95,32.8439]
[1646961384996,6.096,82.065,81.95,32.8439]
[1646961385197,60.75681883,82.065,81.95,32.8439]
[1646961385397,51.61633926,82.064,81.95,32.8439]
[1646961385601,6.097,82.063,81.95,32.8439]
[1646961385804,14.54,82.06,81.95,18.3039]
[1646961386002,6.097,82.059,81.95,18.3039]
[1646961386404,23.8111,82.058,81.95,18.3039]
[1646961386605,6.097,82.057,81.95,18.3039]
[1646961386805,37.93788666,82.057,81.95,32.8439]
[1646961387205,31.84088666,82.056,81.95,32.8439]
[1646961387408,6.097,82.055,81.95,32.8439]
[1646961387605,37.93788666,82.055,81.95,32.8439]
[1646961387805,31.84088666,82.054,81.95,32.8439]
[1646961388006,6.097,82.053,81.95,41.96402982]
[1646961388409,6.097,82.057,81.95,41.96402982]
[1646961389209,9.14147957,82.057,81.98,18.2963]
[1646961389410,28.79640709,82.056,81.98,18.2963]
[1646961389610,6.096,82.055,81.98,18.2963]
[1646961389809,9.14047957,82.055,81.98,18.2963]
[1646961390112,31.84088666,82.054,81.98,18.2963]
[1646961390318,6.096,82.053,81.98,18.2963]
[1646961390611,37.93688666,82.053,81.98,18.2963]
[1646961390810,31.84088666,82.052,81.98,18.2963]
[1646961391012,6.096,82.051,81.98,18.2963]
[1646961391911,6.096,82.057,81.98,18.2963]
[1646961392312,31.84088666,82.056,81.97,18.3]
[1646961392512,6.096,82.055,81.97,18.3]
[1646961392712,37.93688666,82.055,81.97,18.3]
[1646961392913,28.79640709,82.054,81.97,18.3]
[1646961393113,6.096,82.053,81.97,18.3]
[1646961393312,9.14047957,82.053,81.97,18.3]
[1646961393515,3.04447957,82.052,81.97,18.3]
[1646961393715,6.096,82.051,81.97,18.3]
[1646961394116,6.096,82.051,81.98,18.2982]
[1646961394514,6.096,82.053,81.98,18.2982]
[1646961396837,9.14047957,82.053,81.96,75.5323]
[1646961397037,28.79640709,82.052,81.96,14.54]
[1646961397237,28.79640709,82.052,81.94,189.9422]
[1646961397238,6.097,82.051,81.94,189.9422]
[1646961397436,9.14147957,82.051,81.94,189.9422]
[1646961397638,31.84088666,82.05,81.94,189.9422]
[1646961397837,6.097,82.049,81.943,27.42402982]
[1646961398036,9.14147957,82.049,81.943,27.42402982]
[1646961398237,3.04447957,82.048,81.943,27.42402982]
[1646961398438,6.097,82.047,81.944,6.097]
[1646961398642,24.7742,82.046,81.944,6.097]
[1646961398838,6.097,82.045,81.945,27.42402982]
[1646961399038,58.36193069,82.044,81.946,6.097]
[1646961399239,6.097,82.043,81.95,14.54]
[1646961399641,28.79640709,82.042,81.95,14.54]
[1646961399843,6.097,82.041,81.95,14.54]
[1646961400042,13.477,82.041,81.95,14.54]
[1646961400243,13.477,82.041,81.941,6.097]
[1646961400244,68.13781883,82.041,81.941,6.097]
[1646961400443,41.06017957,82.04,81.94,114.4]
[1646961400745,121.8,82.029,81.924,6.098]
[1646961400943,14.54,82.02,81.919,6.099]
[1646961401147,14.54,82.02,81.91,18.3135]
[1646961401148,187.35997204,82.018,81.91,18.3135]
[1646961401346,187.35997204,82.018,81.903,114.4]
[1646961401547,121.8,82.016,81.894,6.099]
[1646961401749,18.322,81.99,81.891,6.099]
[1646961401944,18.322,81.99,81.889,6.101]
[1646961401945,102.1070072,81.989,81.889,6.101]
[1646961402147,78.8684,81.988,81.892,27.42402982]
[1646961402346,6.102,81.987,81.893,6.102]
[1646961402846,3.04447957,81.986,81.894,27.42402982]
[1646961403044,78.8684,81.988,81.894,27.42402982]
[1646961403045,6.102,81.985,81.895,6.102]
[1646961403248,6.102,81.987,81.895,6.102]
[1646961403546,78.8684,81.988,81.896,27.42402982]
[1646961403748,78.8684,81.988,81.9,75.5738]
[1646961403946,78.8684,81.988,81.901,6.101]
[1646961404148,78.8684,81.988,81.92,18.3105]
[1646961404345,78.8684,81.988,81.901,6.101]
[1646961404546,78.8684,81.988,81.898,6.101]
[1646961404745,3.04447957,81.987,81.891,6.101]
[1646961405149,3.04447957,81.987,81.9,18.3162]
[1646961405348,3.04447957,81.987,81.901,6.101]
[1646961406548,6.101,81.986,81.9,18.3162]
[1646961406950,3.04447957,81.985,81.9,18.3162]
[1646961407152,6.101,81.984,81.91,18.315]
[1646961407552,3.04447957,81.983,81.91,18.315]
[1646961407752,18.315,81.98,81.91,18.315]
[1646961407953,28.682,81.979,81.91,18.315]
[1646961409752,28.682,81.979,81.91,17.815]
[1646961411460,28.682,81.979,81.9,18.3176]
[1646961412054,3.04447957,81.978,81.9,18.3176]
[1646961412255,18.3254,81.97,81.88,14.54]
[1646961412555,6.102,81.977,81.834,114.4]
[1646961412556,26.63117957,81.969,81.868,27.42402982]
[1646961412757,6.103,81.968,81.868,27.42402982]
[1646961412957,9.14747957,81.968,81.868,27.42402982]
[1646961413159,3.04447957,81.967,81.868,27.42402982]
[1646961413365,6.103,81.966,81.868,27.42402982]
[1646961413756,3.04447957,81.965,81.88,27.42402982]
[1646961413960,62.79957023,81.964,81.88,27.42402982]
[1646961414159,62.79957023,81.964,81.88,41.96402982]
[1646961414356,23.0548,81.963,81.88,41.96402982]
[1646961414560,6.103,81.962,81.881,27.42402982]
[1646961414957,23.0548,81.963,81.881,27.42402982]
[1646961415157,23.0548,81.963,81.882,40.61529611]
[1646961415557,23.0548,81.963,81.883,44.0328948]
[1646961415757,23.0548,81.963,81.883,16.60886498]
[1646961415959,6.103,81.962,81.883,16.60886498]
[1646961416358,6.103,81.962,81.88,14.54]
[1646961416961,3.04447957,81.961,81.871,16.60886498]
[1646961417160,3.04447957,81.961,81.799,46.16246088]
[1646961417161,6.103,81.96,81.859,16.60886498]
[1646961417360,6.103,81.96,81.85,14.54]
[1646961417562,29.54072715,81.959,81.85,14.54]
[1646961417763,6.103,81.958,81.846,16.60886498]
[1646961418068,6.103,81.958,81.85,18.3268]
[1646961418069,32.02777957,81.958,81.85,18.3268]
[1646961418262,3.04447957,81.957,81.85,18.3268]
[1646961418461,6.103,81.956,81.85,18.3268]
[1646961418662,121.8,81.949,81.834,114.4]
[1646961418865,121.8,81.947,81.834,114.4]
[1646961419166,121.8,81.945,81.834,114.4]
[1646961419364,127.905,81.944,81.83,18.3328]
[1646961419761,18.3318,81.94,81.83,18.3328]
[1646961419962,58.12807956,81.939,81.84,18.3312]
[1646961420363,61.17255913,81.939,81.84,18.3312]
[1646961420664,3.04447957,81.938,81.84,18.3312]
[1646961420863,6.105,81.937,81.84,18.3312]
[1646961421363,18.3321,81.93,81.84,18.3312]
[1646961421565,52.9907,81.929,81.84,18.3312]
[1646961421866,56.03517957,81.929,81.822,27.42402982]
[1646961422064,3.04447957,81.928,81.83,18.3332]
[1646961422363,6.106,81.927,81.83,18.3332]
[1646961422766,3.04447957,81.926,81.83,18.3332]
[1646961422968,6.106,81.925,81.83,18.3332]
[1646961423164,6.106,81.925,81.82,18.3353]
[1646961423365,3.04447957,81.924,81.82,18.3353]
[1646961423566,121.8,81.919,81.81,41.96402982]
[1646961423766,18.3375,81.92,81.803,128.80753165]
[1646961423767,121.8,81.917,81.803,114.4]
[1646961424165,171.8442354,81.914,81.803,114.4]
[1646961424381,121.8,81.909,81.792,0.54447957]
[1646961424568,121.8,81.907,81.78,14.54]
[1646961424766,18.3419,81.9,81.78,14.54]
[1646961424967,6.109,81.899,81.781,27.42402982]
[1646961425366,27.10397957,81.898,81.781,27.42402982]
[1646961425571,121.8,81.896,81.79,18.3421]
[1646961425773,6.109,81.897,81.766,14.40753165]
[1646961425774,121.8,81.878,81.768,27.42402982]
[1646961425973,121.8,81.876,81.74,14.54]
[1646961426272,6.11,81.877,81.726,18.3131]
[1646961426273,121.8,81.874,81.726,18.3131]
[1646961426472,121.8,81.859,81.73,14.54]
[1646961426675,14.54,81.85,81.73,12.04]
[1646961426876,14.54,81.85,81.73,36.57368901]
[1646961426877,18.3522,81.84,81.73,36.57368901]
[1646961427073,53.4609,81.839,81.73,36.07368901]
[1646961427272,53.4609,81.839,81.73,35.57368901]
[1646961427477,56.50537957,81.839,81.73,11.04]
[1646961427674,3.04447957,81.838,81.721,114.4]
[1646961427874,18.3543,81.83,81.721,114.4]
[1646961428074,24.9691,81.829,81.7,14.54]
[1646961428275,6.114,81.828,81.7,14.54]
[1646961428677,121.8,81.827,81.716,3.04447957]
[1646961428876,6.114,81.826,81.716,3.04447957]
[1646961429078,9.15847957,81.826,81.695,23.87183835]
[1646961429298,18.3651,81.82,81.688,1.93984425]
[1646961429602,52.10879639,81.809,81.688,1.93984425]
[1646961429803,109.7809,81.808,81.688,1.93984425]
[1646961429999,129.95282184,81.808,81.688,1.93984425]
[1646961430199,156.44906942,81.808,81.688,1.93984425]
[1646961430404,73.04029307,81.807,81.688,1.93984425]
[1646961430601,6.115,81.806,81.688,1.93984425]
[1646961430800,79.15529307,81.806,81.688,1.93984425]
[1646961430999,18.3725,81.79,81.688,1.93984425]
[1646961431201,14.54,81.78,81.688,1.93984425]
[1646961431400,57.1492318,81.778,81.688,1.93984425]
[1646961431803,6.115,81.777,81.688,1.93984425]
[1646961432103,32.93197957,81.777,81.688,1.93984425]
[1646961432302,3.04447957,81.776,81.688,1.93984425]
[1646961432502,6.115,81.775,81.688,1.93984425]
[1646961432701,6.115,81.775,81.688,28.23834926]
[1646961432901,29.8875,81.777,81.69,41.0096382]
[1646961433101,23.7725,81.777,81.715,3.08835826]
[1646961434108,23.7725,81.777,81.715,29.38686327]
[1646961434303,23.5186,81.789,81.72,61.164]
[1646961434509,23.5186,81.789,81.72,81.934]
[1646961434715,23.5186,81.789,81.721,3.04447957]
[1646961435105,62.84718368,81.788,81.74,18.3506]
[1646961435305,62.84718368,81.788,81.721,3.04447957]
[1646961436808,62.84718368,81.788,81.73,18.353]
[1646961437005,62.84718368,81.788,81.715,0.04387869]
[1646961437209,62.84718368,81.788,81.72,14.54]
[1646961437606,23.5186,81.789,81.72,14.54]
[1646961438012,23.5186,81.789,81.721,3.04447957]
[1646961438211,23.5186,81.789,81.715,0.04387869]
[1646961438212,130.95947957,81.788,81.715,0.04387869]
[1646961438411,206.99364851,81.788,81.715,0.04387869]
[1646961438712,121.8,81.786,81.715,0.04387869]
[1646961438912,6.115,81.785,81.688,0.98372294]
[1646961439113,14.54,81.77,81.688,0.98372294]
[1646961439411,15.0,81.768,81.64,14.54]
[1646961439612,6.119,81.767,81.64,14.54]
[1646961439817,15.0,81.768,81.65,3.04447957]
[1646961440013,15.0,81.768,81.66,14.54]
[1646961440214,15.0,81.768,81.7,18.359]
[1646961440411,15.0,81.768,81.68,75.7364]
[1646961440812,15.0,81.768,81.701,3.04447957]
[1646961441212,24.0402,81.769,81.701,3.04447957]
[1646961441413,24.0402,81.769,81.71,18.3573]
[1646961442316,24.0402,81.769,81.72,18.3551]
[1646961442714,6.116,81.782,81.711,3.04447957]
[1646961442914,6.115,81.786,81.721,3.04447957]
[1646961444121,6.115,81.786,81.73,18.3533]
[1646961444515,3.04447957,81.785,81.721,3.04447957]
[1646961444715,3.04447957,81.785,81.66,181.8]
[1646961444716,6.115,81.784,81.69,14.54]
[1646961444919,6.115,81.784,81.692,3.04447957]
[1646961445115,3.04447957,81.783,81.692,3.04447957]
[1646961445318,18.3605,81.78,81.692,3.04447957]
[1646961445519,6.117,81.782,81.692,3.04447957]
[1646961445919,3.04447957,81.782,81.692,3.04447957]
[1646961446419,6.117,81.781,81.692,3.04447957]
[1646961447020,6.117,81.781,81.71,18.3579]
[1646961447220,6.117,81.781,81.692,3.04447957]
[1646961447423,121.8,81.785,81.685,28.40803924]
[1646961447620,121.8,81.769,81.616,114.4]
[1646961447819,6.12,81.768,81.63,14.04]
[1646961448044,27.7587606,81.768,81.65,18.3707]
[1646961448220,27.7587606,81.768,81.64,14.54]
[1646961448221,32.20037957,81.767,81.64,14.54]
[1646961448419,86.06170388,81.767,81.64,14.54]
[1646961448620,124.84447957,81.766,81.64,75.7659]
[1646961448821,56.90580388,81.766,81.64,14.54]
[1646961449022,38.31052285,81.765,81.68,18.3644]
[1646961449221,38.31052285,81.765,81.65,14.54]
[1646961449422,23.0369,81.767,81.66,14.54]
[1646961449621,3.04447957,81.764,81.67,61.2019]
[1646961449823,6.118,81.763,81.67,61.2019]
[1646961450027,50.70507367,81.762,81.67,14.54]
[1646961450224,23.0369,81.767,81.72,18.3551]
[1646961450424,6.115,81.775,81.72,4.79]
[1646961450624,3.04447957,81.793,81.72,4.79]
[1646961450625,6.115,81.787,81.72,4.79]
[1646961450826,6.115,81.787,81.72,65.9563]
[1646961451024,6.115,81.787,81.72,80.4963]
[1646961451426,6.115,81.806,81.72,19.33]
[1646961451626,24.8619,81.807,81.72,19.33]
[1646961452030,29.14704328,81.823,81.721,3.04447957]
[1646961452229,48.1927,81.864,81.721,3.04447957]
[1646961452230,24.8619,81.858,81.722,6.0]
[1646961452431,3.04447957,81.842,81.78,18.3402]
[1646961452632,6.111,81.841,81.78,7.63]
[1646961452832,56.98990451,81.84,81.78,7.63]
[1646961453031,56.98990451,81.84,81.74,14.54]
[1646961453032,6.111,81.839,81.74,14.54]
[1646961453241,38.30252285,81.839,81.72,14.54]
[1646961453430,24.0337,81.838,81.72,14.54]
[1646961453631,6.114,81.837,81.72,14.54]
[1646961453932,63.01980388,81.837,81.72,14.54]
[1646961454130,18.3574,81.83,81.73,61.1597]
[1646961454330,56.00172285,81.836,81.73,14.54]
[1646961454531,6.113,81.835,81.78,18.3433]
[1646961454731,6.113,81.835,81.77,7.48]
[1646961455333,3.04447957,81.834,81.77,7.48]
[1646961455551,2.54447957,81.834,81.77,7.48]
[1646961455753,2.54447957,81.834,81.75,75.6871]
[1646961456152,6.113,81.833,81.75,14.54]
[1646961456352,6.113,81.833,81.73,3.04447957]
[1646961456353,18.3476,81.83,81.73,17.58447957]
[1646961456555,6.113,81.829,81.73,14.54]
[1646961456955,121.8,81.828,81.73,14.54]
[1646961457155,3.04447957,81.828,81.73,32.8928]
[1646961457353,9.15847957,81.827,81.73,18.3528]
[1646961457559,38.30552285,81.827,81.73,18.3528]
[1646961457757,26.02937957,81.826,81.71,14.54]
[1646961457956,121.8,81.824,81.71,14.54]
[1646961458155,14.54,81.82,81.73,18.3543]
[1646961458358,6.114,81.819,81.73,18.3543]
[1646961458757,9.15847957,81.819,81.73,18.3543]
[1646961458960,3.04447957,81.818,81.71,14.54]
[1646961459157,3.04447957,81.818,81.71,18.3582]
[1646961459158,121.8,81.816,81.71,18.3582]
[1646961459358,121.8,81.809,81.69,14.54]
[1646961459563,59.80299098,81.817,81.68,75.7387]
[1646961459564,14.54,81.8,81.68,75.7387]
[1646961459758,170.4989,81.799,81.67,14.54]
[1646961459965,121.8,81.797,81.67,14.54]
[1646961460167,121.8,81.797,81.68,18.3654]
[1646961460367,62.84947055,81.798,81.662,6.36941418]
[1646961460368,121.8,81.795,81.662,6.36941418]
[1646961460569,121.8,81.795,81.66,14.54]
[1646961460570,121.8,81.789,81.66,14.54]
[1646961460762,121.8,81.779,81.66,14.54]
[1646961460962,121.8,81.779,81.649,6.37019909]
[1646961460963,126.61,81.779,81.649,6.37019909]
[1646961461163,1.64424255,81.774,81.65,18.3724]
[1646961461364,14.54,81.76,81.65,18.3724]
[1646961461563,32.9112,81.75,81.65,18.3724]
[1646961461762,32.9112,81.75,81.649,6.37019909]
[1646961461763,6.119,81.749,81.649,6.37019909]
[1646961461963,14.54,81.75,81.649,6.37019909]
[1646961462164,3.04447957,81.748,81.649,6.37019909]
[1646961462368,6.12,81.747,81.68,18.3658]
[1646961462564,3.04447957,81.748,81.68,18.3658]
[1646961462764,18.3678,81.74,81.68,18.3658]
[1646961462967,23.5017,81.749,81.68,18.3658]
[1646961463165,23.5017,81.749,81.65,14.54]
[1646961463465,32.39157957,81.748,81.65,18.3727]
[1646961463670,32.39157957,81.748,81.649,6.37019909]
[1646961463865,18.3693,81.74,81.649,6.37019909]
[1646961464066,6.12,81.739,81.649,6.37019909]
[1646961464274,26.27257957,81.748,81.649,6.37019909]
[1646961464468,23.2281,81.748,81.65,14.54]
[1646961464668,23.2281,81.748,81.65,43.37287726]
[1646961464867,23.5017,81.749,81.69,61.1946]
[1646961465067,6.118,81.748,81.69,61.1946]
[1646961465367,6.118,81.748,81.68,18.3643]
[1646961465573,53.6108,81.757,81.68,18.3643]
[1646961466370,53.6108,81.757,81.66,61.2156]
[1646961466570,53.6108,81.757,81.649,120.77019909]
[1646961466772,47.4928,81.757,81.66,14.54]
[1646961466974,6.119,81.756,81.69,61.1948]
[1646961467172,47.4928,81.757,81.69,61.1948]
[1646961467970,47.4928,81.757,81.71,18.3575]
[1646961468174,53.6098,81.757,81.67,75.7479]
[1646961468472,53.6098,81.757,81.67,61.2079]
[1646961468873,47.4928,81.757,81.67,61.2079]
[1646961469173,47.4928,81.757,81.67,75.7479]
[1646961470276,47.4928,81.757,81.7,18.3615]
[1646961470876,6.117,81.756,81.68,14.54]
[1646961471275,6.118,81.777,81.72,18.3575]
[1646961472176,51.80507089,81.776,81.72,18.3575]
[1646961472378,6.115,81.775,81.72,18.3575]
[1646961472979,6.115,81.775,81.663,121.8]
[1646961473180,46.784,81.787,81.671,121.8]
[1646961473381,6.117,81.789,81.707,3.04447957]
[1646961473581,22.8563,81.825,81.72,14.54]
[1646961473582,28.97370995,81.818,81.72,14.54]
[1646961473780,6.115,81.824,81.72,14.54]
[1646961473979,49.16498502,81.817,81.721,9.04447957]
[1646961474178,3.04447957,81.851,81.8,18.3386]
[1646961474979,3.04447957,81.851,81.726,5.36]
[1646961474980,6.11,81.85,81.726,5.36]
[1646961475179,48.35498818,81.849,81.77,18.3461]
[1646961475381,6.111,81.848,81.77,18.3461]
[1646961475784,24.71428103,81.847,81.77,18.3461]
[1646961475982,6.111,81.846,81.77,18.3461]
[1646961476281,18.3461,81.84,81.77,18.3461]
[1646961476482,6.112,81.839,81.77,18.3461]
[1646961476882,9.15647957,81.839,81.77,18.3461]
[1646961477083,3.04447957,81.838,81.75,61.1515]
[1646961477282,6.112,81.837,81.78,18.3441]
[1646961477683,3.04447957,81.836,81.78,18.3441]
[1646961477884,6.111,81.835,81.78,18.3441]
[1646961478286,3.04447957,81.834,81.77,18.3464]
[1646961478483,6.112,81.833,81.77,18.3464]
[1646961479485,18.3466,81.83,81.75,75.6915]
[1646961479686,6.113,81.829,81.75,14.54]
[1646961479885,3.04447957,81.829,81.73,14.54]
[1646961480084,121.8,81.827,81.66,181.8]
[1646961480286,6.115,81.826,81.681,24.24268393]
[1646961480485,27.7587606,81.826,81.69,17.58447957]
[1646961480688,30.82928103,81.825,81.75,18.3509]
[1646961480888,56.54081232,81.824,81.75,18.3509]
[1646961481086,6.113,81.823,81.75,18.3509]
[1646961481286,9.15747957,81.823,81.75,18.3509]
[1646961481489,23.86037662,81.822,81.71,14.54]
[1646961481687,6.115,81.821,81.71,14.54]
[1646961481909,9.15947957,81.821,81.71,14.54]
[1646961482106,26.90485619,81.82,81.71,14.54]
[1646961482307,6.115,81.819,81.71,14.54]
[1646961482510,38.70985619,81.819,81.71,14.54]
[1646961482711,38.70985619,81.819,81.69,14.54]
[1646961482712,170.37465765,81.818,81.69,14.54]
[1646961483011,121.8,81.809,81.69,14.54]
[1646961483210,121.8,81.807,81.69,14.54]
[1646961483611,121.8,81.805,81.69,14.54]
[1646961483811,57.73413722,81.806,81.69,14.54]
[1646961483812,146.4537,81.804,81.69,14.54]
[1646961484015,6.115,81.803,81.69,14.54]
[1646961484212,32.902,81.8,81.71,18.3602]
[1646961484414,53.57047434,81.798,81.68,14.54]
[1646961484613,6.117,81.797,81.68,14.54]
[1646961484814,9.16147957,81.797,81.68,14.54]
[1646961485217,9.16147957,81.797,81.73,18.3541]
[1646961485218,18.3584,81.79,81.73,18.3541]
[1646961485417,6.115,81.789,81.73,18.3541]
[1646961485716,6.115,81.789,81.71,61.1833]
[1646961486019,28.03567957,81.796,81.71,61.1833]
[1646961486020,6.115,81.795,81.71,61.1833]
[1646961486416,18.3557,81.79,81.72,18.3576]
[1646961486617,6.115,81.789,81.72,18.3576]
[1646961486816,6.115,81.795,81.72,18.3576]
[1646961487018,6.115,81.795,81.71,61.1833]
[1646961487418,18.3579,81.78,81.72,18.358]
[1646961487619,6.115,81.779,81.72,18.358]
[1646961488521,18.3579,81.78,81.72,18.358]
[1646961488919,18.3579,81.78,81.7,61.192]
[1646961488920,18.3579,81.78,81.73,18.356]
[1646961489822,18.3579,81.78,81.7,61.192]
[1646961490024,33.50077957,81.779,81.67,32.9091]
[1646961490223,58.07787957,81.779,81.67,18.3691]
[1646961490421,3.04447957,81.778,81.67,18.3691]
[1646961490621,121.8,81.776,81.67,18.3691]
[1646961490823,56.07630475,81.773,81.65,24.26802839]
[1646961491026,6.119,81.772,81.65,38.80802839]
[1646961491427,6.119,81.772,81.651,52.17198307]
[1646961491624,56.07630475,81.773,81.651,69.29906435]
[1646961491822,56.07630475,81.773,81.652,52.17198307]
[1646961492023,56.07630475,81.773,81.71,18.3588]
[1646961492523,56.07630475,81.773,81.69,61.196]
[1646961493123,56.07630475,81.773,81.71,18.3606]
[1646961493823,56.07630475,81.773,81.7,61.193]
[1646961494030,6.117,81.772,81.69,14.54]
[1646961494225,6.117,81.772,81.73,18.3558]
[1646961494427,56.07630475,81.773,81.73,18.3558]
[1646961494625,56.07630475,81.773,81.69,14.54]
[1646961494626,56.07630475,81.773,81.7,21.85]
[1646961495032,56.07630475,81.773,81.72,61.1778]
[1646961495230,56.07630475,81.773,81.74,18.352]
[1646961495538,6.115,81.799,81.74,6.86]
[1646961495733,47.7605,81.806,81.74,6.86]
[1646961495929,47.7605,81.806,81.74,21.4]
[1646961496132,47.7605,81.806,81.76,61.1476]
[1646961496337,6.114,81.827,81.76,7.09]
[1646961496529,22.8321,81.84,81.76,21.63]
[1646961496530,6.112,81.839,81.76,21.63]
[1646961496730,47.7605,81.858,81.76,21.63]
[1646961496932,6.111,81.857,81.761,3.04447957]
[1646961497331,47.7605,81.858,81.761,3.04447957]
[1646961497630,55.4161682,81.857,81.81,18.3367]
[1646961498231,55.4161682,81.857,81.801,6.53]
[1646961498433,6.111,81.857,81.801,6.53]
[1646961498931,47.7605,81.858,81.801,6.53]
[1646961499433,46.49696261,81.857,81.78,14.54]
[1646961499631,46.49696261,81.857,81.81,18.3366]
[1646961500031,46.49696261,81.857,81.78,14.54]
[1646961500234,29.97137662,81.856,81.77,14.54]
[1646961500636,33.01585619,81.855,81.75,14.54]
[1646961500834,57.73013722,81.855,81.751,6.112]
[1646961501034,26.90485619,81.854,81.751,6.112]
[1646961501235,6.112,81.853,81.751,6.112]
[1646961501434,33.01685619,81.853,81.76,61.1472]
[1646961501732,26.90485619,81.852,81.78,18.3447]
[1646961501935,18.345,81.84,81.78,18.3447]
[1646961502535,17.845,81.84,81.78,18.3447]
[1646961503136,18.3412,81.85,81.77,61.1395]
[1646961503335,3.04447957,81.851,81.77,61.1395]
[1646961503336,3.04447957,81.851,81.771,6.111]
[1646961503536,46.49696261,81.857,81.771,6.111]
[1646961504136,46.49696261,81.857,81.79,61.1252]
[1646961504342,6.111,81.87,81.791,6.11]
[1646961504737,3.04447957,81.871,81.791,6.11]
[1646961504938,76.5762,81.884,81.791,6.11]
[1646961505336,51.68473177,81.882,81.791,6.11]
[1646961505738,51.68473177,81.882,81.79,19.55]
[1646961505938,6.109,81.881,81.79,14.54]
[1646961506339,51.68473177,81.882,81.79,14.54]
[1646961506538,51.68473177,81.882,81.791,6.109]
[1646961506738,22.8321,81.883,81.791,6.109]
[1646961507138,22.8321,81.883,81.792,6.0]
[1646961507340,22.8321,81.883,81.793,6.109]